bitfinex-derivatives/quotes_BTCF0:USTF0_20210409
["timestamp","ask_amount","ask_price","bid_price","bid_amount"]
[1617948153902,0.36085466,57981.0,57979.0,0.8190028]
[1617948154100,0.36085466,57981.0,57980.0,0.2]
[1617948154402,0.36080582,57982.0,57980.0,1.28898204]
[1617948154703,0.36080582,57982.0,57981.0,0.10725655]
[1617948154904,0.36098019,57984.0,57981.0,1.18774013]
[1617948155102,0.36098019,57984.0,57981.0,1.45774013]
[1617948155305,0.44117573,57989.0,57983.0,0.81896817]
[1617948155306,0.36103818,57985.0,57983.0,0.81896817]
[1617948155701,0.36103818,57985.0,57984.0,0.27]
[1617948155902,0.44117573,57989.0,57984.0,1.08897193]
[1617948156403,0.44130971,57990.0,57988.0,0.36853073]
[1617948156602,0.44130971,57990.0,57988.0,0.48765073]
[1617948156803,0.44130971,57990.0,57989.0,0.10725655]
[1617948157002,0.44130971,57990.0,57989.0,0.36725655]
[1617948157216,0.44130971,57990.0,57989.0,0.99729046]
[1617948157402,0.44130971,57990.0,57989.0,0.79729046]
[1617948157606,0.36130985,57990.0,57989.0,1.24769772]
[1617948158804,0.36130985,57990.0,57989.0,0.79729046]
[1617948159205,0.36130985,57990.0,57989.0,1.24770274]
[1617948161806,0.3600621,57996.0,57989.0,0.42876876]
[1617948162310,0.3600621,57996.0,57989.0,0.36725655]
[1617948162708,0.60735654,58006.0,57989.0,0.36725655]
[1617948162709,0.35999143,57998.0,57997.0,0.10725655]
[1617948163210,0.35999143,57998.0,57997.0,0.12725655]
[1617948164310,0.3600067,57999.0,57997.0,0.12725655]
[1617948168218,0.43999632,58003.0,57997.0,0.12725655]
[1617948168219,0.3603246,57998.0,57997.0,0.12725655]
[1617948169921,0.36068106,57999.0,57997.0,0.12725655]
[1617948170924,0.3607573,58000.0,57997.0,0.12725655]
[1617948171225,0.44084502,58004.0,57997.0,0.12725655]
[1617948171425,0.36080779,58000.0,57997.0,0.12725655]
[1617948171826,0.36083415,58001.0,57997.0,0.12725655]
[1617948172226,0.44096503,58005.0,57997.0,0.12725655]
[1617948172427,0.36080494,58000.0,57997.0,0.12725655]
[1617948172726,0.3608356,58001.0,57997.0,0.12725655]
[1617948173231,0.36023438,58004.0,57997.0,0.12725655]
[1617948174632,0.10725655,58006.0,57997.0,0.12725655]
[1617948174829,0.10725655,58006.0,58005.0,0.10725655]
[1617948175030,0.10725655,58006.0,58005.0,0.24180655]
[1617948175331,0.10725655,58006.0,58005.0,0.51180655]
[1617948175630,0.4674014,58006.0,58005.0,0.51180655]
[1617948176631,0.71342701,58006.0,58005.0,0.51180655]
[1617948180436,0.18342701,58006.0,58005.0,0.51180655]
[1617948181137,0.10725655,58010.0,58005.0,0.51180655]
[1617948181538,0.23800615,58009.0,58005.0,0.51180655]
[1617948182841,0.29980708,58006.0,58005.0,0.51180655]
[1617948183342,0.29986571,58007.0,58005.0,0.51180655]
[1617948184542,0.10725655,58010.0,58005.0,0.51180655]
[1617948184543,0.40698402,58010.0,58005.0,0.51180655]
[1617948185544,0.29972747,58010.0,58005.0,0.51180655]
[1617948186347,0.2999262,58013.0,58005.0,0.51180655]
[1617948186846,0.2999262,58013.0,58012.0,0.10725655]
[1617948187244,0.2999262,58013.0,58012.0,0.37725655]
[1617948187444,0.2841262,58013.0,58012.0,0.37725655]
[1617948187768,0.44041945,58023.0,58012.0,1.37725655]
[1617948187945,0.44041945,58023.0,58012.0,0.42945655]
[1617948188246,0.10725655,58028.0,58012.0,1.42945655]
[1617948188849,0.44114416,58031.0,58012.0,1.3222]
[1617948189147,0.44145099,58030.0,58012.0,1.3222]
[1617948189447,0.44145099,58030.0,58012.0,0.3222]
[1617948190247,0.44157062,58031.0,58012.0,0.27]
[1617948190548,0.19551708,58029.0,58012.0,0.27]
[1617948190947,0.19551708,58029.0,58028.0,0.10725655]
[1617948191148,0.20014479,58031.0,58028.0,0.10725655]
[1617948191452,0.20012971,58029.0,58028.0,0.37725655]
[1617948191748,1.0,58030.0,58028.0,0.37725655]
[1617948191948,1.0,58029.0,58028.0,0.37725655]
[1617948192149,1.0,58029.0,58028.0,0.27]
[1617948192150,1.20010318,58029.0,58028.0,0.27]
[1617948192550,1.64156639,58029.0,58006.0,0.01]
[1617948192949,1.64156639,58029.0,58003.0,0.44756114]
[1617948192950,0.64156639,58029.0,58028.0,0.27]
[1617948193151,0.2,58030.0,58026.0,0.10725655]
[1617948193552,0.44157917,58029.0,58028.0,0.01]
[1617948193850,1.0,58027.0,58026.0,0.10725655]
[1617948194250,1.0,58027.0,58026.0,0.11725655]
[1617948194552,1.19985225,58027.0,58026.0,0.11725655]
[1617948194852,1.3071088,58027.0,58026.0,0.11725655]
[1617948195250,0.3071088,58027.0,58026.0,0.11725655]
[1617948195550,1.3071088,58027.0,58026.0,0.11725655]
[1617948197151,0.3071088,58027.0,58026.0,0.11725655]
[1617948197553,1.3071088,58027.0,58026.0,0.11725655]
[1617948198152,1.4321288,58027.0,58026.0,0.11725655]
[1617948199756,1.3071088,58027.0,58026.0,0.11725655]
[1617948200056,0.3071088,58027.0,58026.0,0.11725655]
[1617948200557,1.3071088,58027.0,58026.0,0.11725655]
[1617948201086,1.3071088,58027.0,58026.0,0.01]
[1617948201357,1.74840557,58027.0,58026.0,0.01]
[1617948201756,1.94840557,58027.0,58026.0,0.01]
[1617948203759,1.74840557,58027.0,58026.0,0.01]
[1617948205765,2.10926501,58027.0,58026.0,0.01]
[1617948206567,2.61042099,58027.0,58026.0,0.01]
[1617948208070,1.96927197,58027.0,58026.0,0.01]
[1617948208269,2.75668098,58027.0,58026.0,0.01]
[1617948208670,2.41026814,58027.0,58026.0,0.01]
[1617948209271,1.90911216,58027.0,58026.0,0.01]
[1617948210873,2.41197194,58027.0,58026.0,0.01]
[1617948213274,1.41197194,58027.0,58026.0,0.01]
[1617948213475,2.41197194,58027.0,58026.0,0.01]
[1617948214285,2.6490614,58027.0,58026.0,0.01]
[1617948214701,2.8490614,58027.0,58026.0,0.01]
[1617948214979,0.10725655,58021.0,58020.0,0.10725655]
[1617948215178,0.41111655,58021.0,58020.0,0.10725655]
[1617948215578,1.01015633,58021.0,58020.0,0.10725655]
[1617948215778,2.45262881,58021.0,58020.0,0.27]
[1617948215980,2.45262881,58021.0,57987.0,0.57122997]
[1617948215981,2.7182288,58021.0,58004.0,0.36723098]
[1617948216180,1.5,58020.0,58004.0,0.36723098]
[1617948216481,1.5,58020.0,57980.0,0.09224046]
[1617948216483,1.5,58020.0,58003.0,0.36724033]
[1617948216485,0.36193339,58009.0,58003.0,0.36724033]
[1617948216779,0.49949339,58009.0,58005.0,0.27]
[1617948217080,1.46930554,58006.0,58003.0,0.36724033]
[1617948217280,1.46930554,58006.0,58004.0,0.26]
[1617948217683,1.0,58005.0,58002.0,0.36743862]
[1617948217882,1.0,58005.0,57999.0,0.10725655]
[1617948217883,2.49887165,58005.0,58000.0,0.30621884]
[1617948218082,1.0,58003.0,58000.0,0.30621884]
[1617948218383,1.0,58003.0,57987.0,0.51036473]
[1617948218384,0.66302223,58001.0,57998.0,0.30622135]
[1617948218582,1.7,58000.0,57998.0,0.30622135]
[1617948218883,1.7,58000.0,57996.0,0.30624205]
[1617948219083,0.20222655,57997.0,57996.0,0.30624205]
[1617948219286,0.20222655,57997.0,57990.0,0.30625477]
[1617948219287,1.70222655,57997.0,57990.0,0.30625477]
[1617948219483,7.70222655,57997.0,57990.0,0.30625477]
[1617948219685,1.36099839,57991.0,57990.0,0.30625477]
[1617948219884,3.36184709,57991.0,57986.0,0.30627138]
[1617948220287,3.01045732,57991.0,57985.0,0.30627679]
[1617948220696,1.0,57987.0,57985.0,0.30627679]
[1617948220901,1.0,57987.0,57963.0,0.57171668]
[1617948220902,2.60224339,57986.0,57981.0,0.30628613]
[1617948221091,0.10725655,57982.0,57981.0,0.30628613]
[1617948221285,0.10725655,57982.0,57980.0,0.30628611]
[1617948221286,0.25144655,57982.0,57980.0,0.30628611]
[1617948221583,1.25144655,57982.0,57981.0,0.27]
[1617948221793,0.25144655,57982.0,57981.0,0.27]
[1617948221985,0.25144655,57982.0,57980.0,0.30628611]
[1617948222185,0.91401598,57982.0,57981.0,0.56646395]
[1617948222706,0.91401598,57982.0,57981.0,0.30646395]
[1617948222902,0.91401598,57982.0,57981.0,0.55646395]
[1617948223785,1.91401598,57982.0,57981.0,0.55646395]
[1617948224186,1.91401598,57982.0,57981.0,0.25]
[1617948224686,1.91401598,57982.0,57980.0,0.30646844]
[1617948224886,1.91401598,57982.0,57981.0,0.27]
[1617948225086,1.91401598,57982.0,57981.0,0.57648195]
[1617948225591,1.91401598,57982.0,57981.0,0.30648195]
[1617948225895,1.91401598,57982.0,57981.0,0.57648195]
[1617948226789,1.91401598,57982.0,57981.0,0.27]
[1617948227195,1.91401598,57982.0,57980.0,0.3064836]
[1617948227640,1.91401598,57982.0,57976.0,0.10725655]
[1617948227641,1.91401598,57982.0,57981.0,0.94425249]
[1617948227791,0.91401598,57982.0,57981.0,0.94425249]
[1617948227993,0.10725655,57982.0,57979.0,0.30570007]
[1617948228292,0.10725655,57982.0,57981.0,0.26]
[1617948228493,0.10725655,57982.0,57981.0,0.56569864]
[1617948228693,0.10725655,57982.0,57981.0,0.30569864]
[1617948228892,1.10725655,57982.0,57981.0,0.56569864]
[1617948229094,1.40784736,57982.0,57981.0,0.26]
[1617948229497,1.40784736,57982.0,57979.0,0.27]
[1617948229795,1.54636736,57982.0,57981.0,0.26]
[1617948229998,1.24577655,57982.0,57976.0,0.41295698]
[1617948230196,1.24577655,57982.0,57977.0,0.27]
[1617948230197,0.24577655,57982.0,57977.0,0.27]
[1617948230397,1.0,57980.0,57979.0,0.01]
[1617948230596,1.0,57978.0,57976.0,0.10725655]
[1617948230798,1.30045068,57980.0,57977.0,0.27]
[1617948230995,1.30045068,57980.0,57974.0,0.30571194]
[1617948231215,0.30041216,57978.0,57973.0,0.30572072]
[1617948231898,2.7436,57975.0,57974.0,0.27]
[1617948232196,3.10382937,57975.0,57974.0,0.27]
[1617948232395,3.10382937,57975.0,57971.0,0.27]
[1617948232596,3.04389063,57975.0,57968.0,0.57574021]
[1617948232896,3.04389063,57975.0,57972.0,0.27]
[1617948233097,0.10725655,57973.0,57972.0,0.27]
[1617948233301,0.10725655,57973.0,57969.0,0.27]
[1617948233598,0.40769667,57973.0,57972.0,0.01]
[1617948233997,0.40769667,57973.0,57970.0,0.26]
[1617948234198,1.40769667,57973.0,57972.0,0.01]
[1617948234398,1.10725655,57973.0,57971.0,0.25]
[1617948234798,1.10725655,57973.0,57967.0,0.30554552]
[1617948234998,1.10725655,57973.0,57968.0,0.27]
[1617948235197,1.10725655,57973.0,57972.0,0.26]
[1617948235397,1.10725655,57973.0,57967.0,0.30554552]
[1617948235598,1.10725655,57973.0,57969.0,0.27]
[1617948235800,1.10725655,57973.0,57968.0,0.27]
[1617948235997,0.10725655,57973.0,57968.0,0.27]
[1617948236200,1.0,57970.0,57968.0,0.27]
[1617948236698,1.0,57970.0,57968.0,0.57554417]
[1617948236998,1.0,57970.0,57968.0,0.27]
[1617948237298,1.0,57970.0,57967.0,0.57554436]
[1617948237502,1.0,57970.0,57969.0,0.27]
[1617948237698,1.0,57970.0,57968.0,0.27]
[1617948237999,0.10725655,57973.0,57969.0,0.27]
[1617948238199,1.0,57970.0,57969.0,0.27]
[1617948238400,1.0,57970.0,57968.0,0.27]
[1617948238698,1.11533,57970.0,57969.0,0.27]
[1617948238899,1.11533,57970.0,57968.0,0.27]
[1617948239301,0.11533,57970.0,57969.0,0.27]
[1617948239500,0.11533,57970.0,57966.0,0.10725655]
[1617948239900,0.11533,57970.0,57969.0,0.27]
[1617948240101,0.10725655,57973.0,57967.0,0.01]
[1617948240301,0.10725655,57973.0,57966.0,0.10725655]
[1617948240701,0.10725655,57973.0,57967.0,0.27]
[1617948241303,1.0,57968.0,57967.0,0.27]
[1617948245312,1.0,57968.0,57961.0,0.30451402]
[1617948245711,1.0,57968.0,57958.0,0.30452376]
[1617948245911,1.0,57962.0,57958.0,0.30452376]
[1617948246114,0.12247,57970.0,57959.0,0.27]
[1617948246115,1.0,57961.0,57959.0,0.27]
[1617948246513,1.0,57964.0,57958.0,0.27]
[1617948246712,1.0,57965.0,57958.0,0.27]
[1617948246912,1.0,57965.0,57960.0,0.27]
[1617948247112,1.0,57965.0,57961.0,0.10725655]
[1617948247613,1.0,57965.0,57962.0,0.27]
[1617948248913,1.0,57963.0,57962.0,0.27]
[1617948249114,1.10725655,57963.0,57962.0,0.27]
[1617948251116,0.10725655,57963.0,57962.0,0.27]
[1617948252118,1.10725655,57963.0,57962.0,0.27]
[1617948254920,1.22067655,57963.0,57962.0,0.27]
[1617948256626,4.00697655,57963.0,57962.0,0.27]
[1617948256820,4.00697655,57963.0,57956.0,0.27]
[1617948257021,4.00697655,57963.0,57954.0,0.3044874]
[1617948257222,1.10725655,57957.0,57955.0,0.27]
[1617948257422,1.10725655,57957.0,57954.0,0.3044874]
[1617948257622,1.10725655,57957.0,57953.0,0.30449278]
[1617948257922,1.10725655,57957.0,57955.0,0.27]
[1617948258122,1.10725655,57957.0,57953.0,0.57449278]
[1617948258323,1.0,57956.0,57954.0,0.01]
[1617948258523,1.0,57956.0,57952.0,0.10725655]
[1617948258524,1.0,57956.0,57952.0,0.41174953]
[1617948258727,1.0,57954.0,57952.0,0.41174953]
[1617948258928,1.0,57954.0,57953.0,0.27]
[1617948259126,0.10725655,57957.0,57953.0,0.27]
[1617948259627,1.0,57954.0,57953.0,0.27]
[1617948260032,1.0,57954.0,57950.0,0.30450795]
[1617948260033,1.0,57954.0,57950.0,0.27]
[1617948260235,0.10725655,57957.0,57951.0,0.27]
[1617948260551,0.10725655,57957.0,57946.0,0.01]
[1617948260552,0.10725655,57957.0,57946.0,0.30451897]
[1617948260849,0.10725655,57957.0,57948.0,0.27]
[1617948261027,1.0,57952.0,57947.0,0.27]
[1617948261228,0.10725655,57948.0,57946.0,0.30451897]
[1617948261729,1.10725655,57948.0,57947.0,0.27]
[1617948261928,0.10725655,57948.0,57947.0,0.27]
[1617948262131,0.10725655,57948.0,57945.0,0.30451973]
[1617948262330,1.10725655,57948.0,57944.0,0.27]
[1617948262531,1.10725655,57948.0,57947.0,0.01]
[1617948262831,0.10725655,57948.0,57945.0,0.27]
[1617948263130,1.23435655,57948.0,57947.0,0.27]
[1617948263331,0.23435655,57948.0,57946.0,0.27]
[1617948263531,1.23435655,57948.0,57946.0,0.27]
[1617948263732,3.1608,57947.0,57944.0,0.01]
[1617948263932,3.1608,57947.0,57943.0,0.30420297]
[1617948263933,4.1608,57947.0,57943.0,0.30420297]
[1617948264235,4.1608,57947.0,57905.0,2.852]
[1617948264236,1.0,57945.0,57935.0,0.30424915]
[1617948264571,1.0,57945.0,57912.0,0.56793174]
[1617948264572,1.0,57945.0,57933.0,0.30426728]
[1617948264638,1.0,57944.0,57933.0,0.30426728]
[1617948264833,1.0,57936.0,57933.0,0.30426728]
[1617948265034,1.0,57936.0,57930.0,0.36512073]
[1617948265035,1.09997,57936.0,57934.0,0.27]
[1617948265234,0.10725655,57935.0,57934.0,0.27]
[1617948265435,0.10725655,57935.0,57931.0,0.27]
[1617948265633,1.10725655,57935.0,57931.0,0.27]
[1617948265835,2.5476,57932.0,57931.0,0.27]
[1617948266035,3.5476,57932.0,57931.0,0.27]
[1617948266233,3.5476,57932.0,57929.0,0.27]
[1617948266434,3.5476,57932.0,57931.0,0.01]
[1617948266936,1.0,57932.0,57930.0,0.27]
[1617948267134,1.0,57932.0,57931.0,0.01]
[1617948267336,1.0,57932.0,57930.0,2.6949]
[1617948267659,1.0,57932.0,57931.0,0.27]
[1617948269439,1.0,57932.0,57930.0,0.27]
[1617948269738,1.0,57932.0,57931.0,0.27]
[1617948269939,3.6678,57932.0,57929.0,0.01]
[1617948270139,3.6678,57932.0,57927.0,0.3048165]
[1617948270337,3.6678,57932.0,57928.0,0.26]
[1617948270538,3.6678,57932.0,57930.0,0.02]
[1617948270739,3.6678,57932.0,57927.0,0.3048165]
[1617948270967,3.6678,57932.0,57928.0,0.27]
[1617948271149,3.6678,57932.0,57931.0,0.27]
[1617948271357,3.6678,57932.0,57924.0,0.47303635]
[1617948271358,3.6678,57932.0,57925.0,0.3048323]
[1617948271541,3.6678,57932.0,57928.0,0.27]
[1617948271742,3.6678,57932.0,57931.0,0.27]
[1617948271958,3.6678,57932.0,57925.0,0.01]
[1617948272155,3.6678,57932.0,57926.0,0.27]
[1617948272342,3.6678,57932.0,57931.0,0.27]
[1617948272542,3.6678,57932.0,57925.0,0.01]
[1617948272841,3.6678,57932.0,57926.0,0.27]
[1617948273043,3.6678,57932.0,57925.0,0.27]
[1617948273242,3.6678,57932.0,57927.0,0.27]
[1617948273642,3.6678,57932.0,57925.0,0.27]
[1617948273943,1.0,57928.0,57924.0,0.10725655]
[1617948274143,1.0,57928.0,57925.0,0.27]
[1617948275347,0.10725655,57926.0,57925.0,0.27]
[1617948275846,1.10725655,57926.0,57925.0,0.27]
[1617948279251,3.75725655,57926.0,57925.0,0.27]
[1617948280451,2.75725655,57926.0,57925.0,0.27]
[1617948281653,3.75725655,57926.0,57925.0,0.27]
[1617948282653,3.75725655,57926.0,57921.0,0.27]
[1617948282852,3.75725655,57926.0,57925.0,0.27]
[1617948283255,1.0,57922.0,57921.0,0.27]
[1617948283456,1.0,57922.0,57920.0,0.30475558]
[1617948283457,1.0,57922.0,57919.0,0.30476068]
[1617948283755,1.0,57922.0,57921.0,0.27]
[1617948283956,2.75725655,57926.0,57921.0,0.27]
[1617948284155,2.75725655,57926.0,57919.0,0.30476068]
[1617948284356,1.0,57922.0,57920.0,0.27]
[1617948284656,1.0,57922.0,57918.0,0.10725655]
[1617948285057,1.0,57922.0,57920.0,0.27]
[1617948285255,1.0,57922.0,57919.0,0.27]
[1617948285457,1.0,57922.0,57918.0,0.10725655]
[1617948285756,1.0,57922.0,57921.0,0.27]
[1617948286059,1.0,57922.0,57919.0,0.27]
[1617948286258,1.0,57922.0,57921.0,0.27]
[1617948286464,1.0,57922.0,57920.0,0.27]
[1617948286858,1.0,57922.0,57921.0,0.26]
[1617948287058,1.0,57922.0,57918.0,0.10725655]
[1617948287261,1.0,57922.0,57919.0,0.27]
[1617948287860,1.0,57922.0,57919.0,0.57470611]
[1617948288260,1.0,57920.0,57919.0,0.57470611]
[1617948289360,1.10725655,57920.0,57919.0,0.57470611]
[1617948290161,1.10725655,57920.0,57919.0,0.30470611]
[1617948290863,0.10725655,57920.0,57919.0,0.30470611]
[1617948291064,0.10725655,57920.0,57918.0,0.41196465]
[1617948291665,0.10725655,57920.0,57919.0,0.30470685]
[1617948293968,0.10725655,57920.0,57919.0,0.42592685]
[1617948298673,1.0,57929.0,57919.0,3.43392325]
[1617948298972,1.0,57938.0,57919.0,3.70392325]
[1617948299173,0.29855109,57941.0,57923.0,0.30498491]
[1617948299373,0.29855109,57941.0,57938.0,2.6414]
[1617948299573,0.29855109,57941.0,57940.0,0.23812655]
[1617948299775,0.29891292,57946.0,57940.0,0.23812655]
[1617948299975,1.0,57942.0,57940.0,0.49812655]
[1617948301377,3.1568,57941.0,57940.0,0.49812655]
[1617948301577,3.26405655,57941.0,57940.0,0.49812655]
[1617948306480,0.10725655,57941.0,57940.0,0.49812655]
[1617948306880,0.10725655,57941.0,57940.0,3.06582655]
[1617948308787,0.10725655,57941.0,57940.0,0.39087]
[1617948308987,4.65715655,57941.0,57940.0,0.26]
[1617948309328,3.65715655,57941.0,57940.0,0.26]
[1617948309505,3.65715655,57941.0,57933.0,0.57523905]
[1617948309506,0.10725655,57934.0,57933.0,0.57523905]
[1617948309687,0.10725655,57934.0,57931.0,0.30524551]
[1617948310087,1.10725655,57934.0,57933.0,0.27]
[1617948310286,1.0,57932.0,57931.0,0.27]
[1617948310489,1.0,57932.0,57930.0,0.30524762]
[1617948310787,1.10725655,57934.0,57931.0,0.27]
[1617948311031,1.10725655,57934.0,57931.0,0.6730916]
[1617948311032,0.10725655,57934.0,57931.0,0.6730916]
[1617948311392,0.10725655,57934.0,57933.0,0.30595966]
[1617948311990,0.10725655,57934.0,57933.0,0.02]
[1617948312189,1.10725655,57934.0,57933.0,0.02]
[1617948312491,1.10725655,57934.0,57930.0,0.30597321]
[1617948312993,1.0,57931.0,57930.0,0.30597321]
[1617948313191,1.14653,57931.0,57930.0,0.30597321]
[1617948313391,1.14653,57931.0,57930.0,0.27]
[1617948313589,4.87323,57931.0,57930.0,0.27]
[1617948313792,4.87323,57931.0,57928.0,0.30597565]
[1617948313992,4.87323,57931.0,57930.0,0.27]
[1617948314290,3.87323,57931.0,57929.0,0.27]
[1617948314691,4.87323,57931.0,57930.0,0.27]
[1617948314995,3.87323,57931.0,57929.0,0.27]
[1617948315291,3.87323,57931.0,57930.0,0.27]
[1617948315491,3.87323,57931.0,57928.0,0.30597565]
[1617948315692,1.0,57930.0,57929.0,0.27]
[1617948315891,1.0,57930.0,57928.0,0.30597565]
[1617948316093,1.0,57930.0,57929.0,0.27]
[1617948316893,1.0,57930.0,57927.0,0.30599276]
[1617948317095,4.80919,57930.0,57927.0,0.30599276]
[1617948317393,1.12299,57930.0,57927.0,0.30599276]
[1617948317594,1.12299,57930.0,57890.0,0.8976149]
[1617948317595,1.76409221,57928.0,57917.0,0.30604452]
[1617948317794,1.96409221,57928.0,57917.0,0.30604452]
[1617948318111,1.96409221,57928.0,57916.0,0.30604844]
[1617948318312,1.10256,57918.0,57916.0,0.30604844]
[1617948318594,2.6841,57915.0,57914.0,0.30606445]
[1617948318814,2.6841,57915.0,57912.0,0.36727734]
[1617948318815,2.6841,57915.0,57912.0,0.3060708]
[1617948319294,1.0,57913.0,57912.0,0.3060708]
[1617948319794,1.10725655,57913.0,57912.0,0.5760708]
[1617948320294,1.10725655,57913.0,57912.0,0.3060708]
[1617948320495,1.10725655,57913.0,57909.0,0.3056629]
[1617948320694,3.5702,57910.0,57909.0,0.3056629]
[1617948321094,3.5702,57910.0,57907.0,0.30566559]
[1617948321796,1.0,57908.0,57907.0,0.30566559]
[1617948322001,1.0,57908.0,57903.0,0.44928466]
[1617948322397,1.0,57908.0,57907.0,0.73550201]
[1617948322597,0.01004202,57912.0,57907.0,0.73550201]
[1617948322798,0.01004202,57912.0,57907.0,0.67392617]
[1617948322799,3.5422,57908.0,57907.0,0.67392617]
[1617948323600,4.5422,57908.0,57907.0,0.67392617]
[1617948323899,4.5422,57908.0,57907.0,0.30633008]
[1617948324099,4.5422,57908.0,57907.0,0.36790675]
[1617948324598,4.5422,57908.0,57907.0,0.30633008]
[1617948326305,4.55223643,57908.0,57907.0,0.30633008]
[1617948326504,4.5422,57908.0,57907.0,0.30633008]
[1617948329307,4.5422,57908.0,57905.0,0.30636892]
[1617948329308,4.84029285,57908.0,57905.0,0.30636892]
[1617948329606,0.11728752,57906.0,57904.0,0.3063689]
[1617948330007,0.21820752,57906.0,57904.0,0.3063689]
[1617948331009,1.0,57905.0,57901.0,0.30585708]
[1617948332312,1.0,57905.0,57899.0,0.30586951]
[1617948333012,1.0,57900.0,57899.0,0.30586951]
[1617948333213,3.6859,57900.0,57898.0,0.35167328]
[1617948333511,3.6859,57900.0,57899.0,0.27]
[1617948333812,2.79315655,57900.0,57899.0,0.57568636]
[1617948334012,3.79315655,57900.0,57899.0,0.57568636]
[1617948334315,3.79315655,57900.0,57899.0,0.27]
[1617948334912,1.10725655,57900.0,57899.0,0.27]
[1617948335613,1.10725655,57900.0,57899.0,0.57568776]
[1617948336817,1.10725655,57900.0,57899.0,0.27]
[1617948338719,1.10725655,57900.0,57899.0,0.57568595]
[1617948339617,0.10725655,57900.0,57899.0,0.57568595]
[1617948340020,1.10725655,57900.0,57899.0,0.57568595]
[1617948342121,1.10725655,57900.0,57899.0,0.27]
[1617948342322,0.10725655,57900.0,57899.0,0.27]
[1617948342522,1.10725655,57900.0,57899.0,0.27]
[1617948342922,1.10725655,57900.0,57899.0,0.5755505]
[1617948344431,1.10725655,57900.0,57899.0,0.27]
[1617948346826,0.10725655,57900.0,57899.0,0.27]
[1617948347040,1.10725655,57900.0,57899.0,0.27]
[1617948347228,3.88045655,57900.0,57899.0,0.27]
[1617948349928,1.10725655,57900.0,57899.0,0.27]
[1617948350532,1.10725655,57900.0,57898.0,0.27]
[1617948350730,1.10725655,57900.0,57898.0,0.57538773]
[1617948350930,1.10725655,57900.0,57899.0,0.27]
[1617948351131,1.10725655,57900.0,57898.0,0.30538773]
[1617948351533,1.10725655,57900.0,57899.0,0.27]
[1617948351733,1.10725655,57900.0,57899.0,0.57538439]
[1617948352137,4.18525655,57900.0,57899.0,0.30538439]
[1617948352435,4.18525655,57900.0,57899.0,0.57538439]
[1617948354238,1.10725655,57900.0,57899.0,0.27]
[1617948354640,1.10725655,57900.0,57899.0,0.10055]
[1617948354840,0.10725655,57900.0,57899.0,0.10055]
[1617948355041,0.10725655,57900.0,57899.0,0.37055]
[1617948355242,0.10725655,57900.0,57899.0,0.67605229]
[1617948355946,0.10725655,57900.0,57899.0,0.78330884]
[1617948356146,0.10725655,57900.0,57899.0,1.14983419]
[1617948358844,0.01001704,57919.0,57899.0,1.59777474]
[1617948359044,0.01001704,57919.0,57900.0,0.2]
[1617948359545,0.01001919,57921.0,57908.0,0.3053956]
[1617948359846,0.01001919,57921.0,57920.0,0.10725655]
[1617948360045,1.01002212,57923.0,57920.0,0.10725655]
[1617948360846,1.0,57923.0,57920.0,0.10725655]
[1617948361747,0.10725655,57921.0,57920.0,0.10725655]
[1617948365385,0.29812963,57924.0,57920.0,0.10725655]
[1617948365591,0.29812963,57924.0,57920.0,0.37725655]
[1617948365956,0.29824508,57926.0,57920.0,0.37725655]
[1617948366381,0.2983298,57928.0,57920.0,0.37725655]
[1617948366551,0.2983298,57928.0,57924.0,3.5939]
[1617948366953,0.40576235,57932.0,57925.0,0.27]
[1617948367151,0.40576235,57932.0,57925.0,0.39847]
[1617948367353,0.10725655,57932.0,57925.0,0.39847]
[1617948367874,0.10725655,57932.0,57931.0,0.10725655]
[1617948368252,0.10725655,57932.0,57931.0,0.37725655]
[1617948369159,0.10725655,57932.0,57931.0,0.68409605]
[1617948369160,0.76666924,57932.0,57931.0,0.68409605]
[1617948370455,1.01290853,57932.0,57931.0,0.68409605]
[1617948371076,2.01290853,57932.0,57931.0,1.05230777]
[1617948371259,1.01290853,57932.0,57931.0,1.05230777]
[1617948371966,1.01290853,57932.0,57931.0,0.37725655]
[1617948371967,0.40699867,57932.0,57931.0,0.37725655]
[1617948372759,0.11731112,57932.0,57931.0,0.37725655]
[1617948373060,0.40592014,57932.0,57931.0,0.37725655]
[1617948373459,1.40592014,57932.0,57931.0,0.37725655]
[1617948373659,1.10725655,57932.0,57931.0,0.37725655]
[1617948373858,0.10725655,57932.0,57931.0,0.37725655]
[1617948374060,0.40583584,57932.0,57931.0,0.37725655]
[1617948376262,0.10725655,57932.0,57931.0,0.37725655]
[1617948376662,0.40583509,57932.0,57931.0,0.37725655]
[1617948377162,0.11730548,57932.0,57931.0,0.37725655]
[1617948379164,0.10725655,57932.0,57931.0,0.37725655]
[1617948379964,0.40575624,57932.0,57931.0,0.37725655]
[1617948380474,0.11729639,57932.0,57931.0,0.37725655]
[1617948380964,0.10725655,57932.0,57931.0,0.37725655]
[1617948384665,0.10725655,57932.0,57931.0,0.50899655]
[1617948401985,0.10725655,57932.0,57931.0,0.37725655]
[1617948402187,3.06959967,57932.0,57931.0,0.27]
[1617948402387,4.06959967,57932.0,57931.0,0.27]
[1617948402590,4.06959967,57932.0,57905.0,0.57112047]
[1617948402592,4.06959967,57932.0,57928.0,0.01]
[1617948402593,4.35785705,57932.0,57928.0,0.01]
[1617948402887,4.35785705,57932.0,57931.0,0.26]
[1617948403289,4.35785705,57932.0,57901.0,0.2]
[1617948403290,0.29823882,57929.0,57926.0,0.27]
[1617948403589,4.71548243,57932.0,57919.0,0.30599409]
[1617948403789,4.71548243,57932.0,57927.0,0.01]
[1617948404189,0.29807526,57926.0,57923.0,0.10725655]
[1617948404389,0.29807526,57926.0,57925.0,0.26]
[1617948404590,1.35764739,57928.0,57925.0,0.26]
[1617948404791,1.35764739,57928.0,57924.0,0.26]
[1617948404991,1.35764739,57928.0,57923.0,0.10725655]
[1617948404992,0.29823635,57926.0,57923.0,0.10725655]
[1617948405492,0.60414883,57927.0,57924.0,0.27]
[1617948406093,0.40553879,57925.0,57924.0,0.27]
[1617948406295,1.40553879,57925.0,57924.0,0.27]